[Event "*** Titled Tuesday Blitz"]
[Site "Chess.com"]
[Date "2018.12.04"]
[Round "6"]
[White "JSMastropiero"]
[Black "chesstatour"]
[Result "1-0"]
[WhiteElo "2173"]
[BlackElo "2084"]
[TimeControl "180+2"]
[EndTime "14:19:06 PST"]
[Termination "JSMastropiero won by resignation"]

1. d4 {[%clk 0:02:54.6]} 1... c6 {[%clk 0:02:58]} 2. c4 {[%clk 0:02:53.6]} 2...
d5 {[%clk 0:02:59.9]} 3. Nf3 {[%clk 0:02:52.2]} 3... Nf6 {[%clk 0:03:01.1]} 4.
Qc2 {[%clk 0:02:49]} 4... g6 {[%clk 0:02:57.8]} 5. Bf4 {[%clk 0:02:46.4]} 5...
Bg7 {[%clk 0:02:55]} 6. e3 {[%clk 0:02:45.7]} 6... Bf5 {[%clk 0:02:51.9]} 7. Qb3
{[%clk 0:02:46.3]} 7... Qb6 {[%clk 0:02:52.4]} 8. c5 {[%clk 0:02:46]} 8... Qxb3
{[%clk 0:02:51.9]} 9. axb3 {[%clk 0:02:47.9]} 9... Nbd7 {[%clk 0:02:47.5]} 10.
b4 {[%clk 0:02:48.4]} 10... a6 {[%clk 0:02:27.3]} 11. b5 {[%clk 0:02:46.7]}
11... cxb5 {[%clk 0:02:04.6]} 12. Bxb5 {[%clk 0:02:44.2]} 12... Bxb1 {[%clk
0:02:04.3]} 13. Bxd7+ {[%clk 0:02:44.1]} 13... Nxd7 {[%clk 0:02:00.2]} 14. Rxb1
{[%clk 0:02:45.4]} 14... Rc8 {[%clk 0:01:52]} 15. Ke2 {[%clk 0:02:41.9]} 15...
f6 {[%clk 0:01:45.3]} 16. b4 {[%clk 0:02:38.6]} 16... e5 {[%clk 0:01:46.3]} 17.
Bg3 {[%clk 0:02:39.2]} 17... b6 {[%clk 0:00:52.4]} 18. Rhc1 {[%clk 0:02:35]}
18... e4 {[%clk 0:00:38.4]} 19. Nd2 {[%clk 0:02:23.8]} 19... a5 {[%clk 0:00:16]}
20. c6 {[%clk 0:02:12.7]} 20... Nb8 {[%clk 0:00:15.9]} 21. Bxb8 {[%clk
0:02:09.4]} 21... Rxb8 {[%clk 0:00:13.2]} 22. bxa5 {[%clk 0:02:11.3]} 22... b5
{[%clk 0:00:12.6]} 23. Rc5 {[%clk 0:02:03.9]} 23... Ke7 {[%clk 0:00:10.5]} 24.
Rxd5 {[%clk 0:02:01.6]} 24... Rhc8 {[%clk 0:00:11.4]} 25. Rd7+ {[%clk
0:01:58.8]} 25... Kf8 {[%clk 0:00:10]} 26. d5 {[%clk 0:01:57.5]} 26... b4 {[%clk
0:00:07.2]} 27. c7 {[%clk 0:01:50.8]} 27... Rb7 {[%clk 0:00:07.7]} 28. Rd8+
{[%clk 0:01:47.1]} 1-0

[Event "*** Titled Tuesday Blitz"]
[Site "Chess.com"]
[Date "2018.12.04"]
[Round "6"]
[White "OparinGrigoriy"]
[Black "LyonBeast"]
[Result "0-1"]
[WhiteElo "2943"]
[BlackElo "2940"]
[TimeControl "180+2"]
[EndTime "14:19:35 PST"]
[Termination "LyonBeast won by resignation"]

1. c4 {[%clk 0:02:59.2]} 1... e5 {[%clk 0:03:00]} 2. Nf3 {[%clk 0:03:01.1]} 2...
Nc6 {[%clk 0:03:00.3]} 3. Nc3 {[%clk 0:03:02.1]} 3... Nf6 {[%clk 0:03:00]} 4. e3
{[%clk 0:03:03]} 4... Bb4 {[%clk 0:02:59.8]} 5. Qc2 {[%clk 0:03:03.4]} 5... Bxc3
{[%clk 0:03:01.1]} 6. Qxc3 {[%clk 0:03:05.3]} 6... Qe7 {[%clk 0:03:02.4]} 7. d4
{[%clk 0:03:05.8]} 7... exd4 {[%clk 0:03:03.6]} 8. Nxd4 {[%clk 0:03:06.4]} 8...
O-O {[%clk 0:02:58.3]} 9. Be2 {[%clk 0:03:04.1]} 9... Ne4 {[%clk 0:02:59.4]} 10.
Qd3 {[%clk 0:03:05.5]} 10... Qb4+ {[%clk 0:03:00.2]} 11. Kf1 {[%clk 0:03:05.8]}
11... Qe7 {[%clk 0:02:55.5]} 12. f3 {[%clk 0:03:04.7]} 12... f5 {[%clk
0:02:51.2]} 13. Nxc6 {[%clk 0:02:58.5]} 13... bxc6 {[%clk 0:02:47.6]} 14. b3
{[%clk 0:02:47.1]} 14... Qh4 {[%clk 0:02:42.3]} 15. g3 {[%clk 0:02:14.9]} 15...
Nxg3+ {[%clk 0:02:42.9]} 16. hxg3 {[%clk 0:02:16.8]} 16... Qxh1+ {[%clk
0:02:43.8]} 17. Kf2 {[%clk 0:02:18.5]} 17... Qh2+ {[%clk 0:02:43.2]} 18. Ke1
{[%clk 0:02:19.9]} 18... Qxg3+ {[%clk 0:02:44]} 19. Kd2 {[%clk 0:02:21.4]} 19...
Qd6 {[%clk 0:02:45.1]} 20. Bb2 {[%clk 0:02:20.9]} 20... Qxd3+ {[%clk 0:02:43.3]}
21. Bxd3 {[%clk 0:02:22.8]} 21... d6 {[%clk 0:02:44.5]} 22. c5 {[%clk
0:02:19.6]} 22... Be6 {[%clk 0:02:42.5]} 23. Rc1 {[%clk 0:02:20]} 23... Bd5
{[%clk 0:02:35.7]} 24. Be2 {[%clk 0:02:17.5]} 24... dxc5 {[%clk 0:02:33]} 25.
Rxc5 {[%clk 0:02:16.7]} 25... Rad8 {[%clk 0:02:32.4]} 26. Ke1 {[%clk 0:02:17.9]}
26... Rfe8 {[%clk 0:02:33.5]} 27. Kf2 {[%clk 0:02:18.6]} 27... h5 {[%clk
0:02:30.5]} 28. Bd4 {[%clk 0:02:12.7]} 28... h4 {[%clk 0:02:19.6]} 29. Rc1
{[%clk 0:02:13.1]} 29... f4 {[%clk 0:02:19.5]} 30. Rh1 {[%clk 0:02:03.5]} 30...
fxe3+ {[%clk 0:02:11.8]} 31. Bxe3 {[%clk 0:02:05.4]} 31... Re5 {[%clk
0:02:02.5]} 32. Bf4 {[%clk 0:01:17]} 32... Rf5 {[%clk 0:01:51.9]} 33. Bxc7
{[%clk 0:01:17.8]} 33... Rd7 {[%clk 0:01:51.9]} 34. Bb8 {[%clk 0:01:17.2]} 34...
g5 {[%clk 0:01:49.7]} 35. Rh3 {[%clk 0:01:13.8]} 35... Rdf7 {[%clk 0:01:47.6]}
36. Ke3 {[%clk 0:01:05.1]} 36... Rb7 {[%clk 0:01:36.9]} 37. Bd6 {[%clk 0:01:04]}
37... Rd7 {[%clk 0:01:38.2]} 38. Bb8 {[%clk 0:01:05.1]} 38... Rf8 {[%clk
0:01:38.3]} 39. Be5 {[%clk 0:00:55.4]} 39... Re7 {[%clk 0:01:35.7]} 40. f4
{[%clk 0:00:53.2]} 40... Rxf4 {[%clk 0:01:35.5]} 0-1

[Event "*** Titled Tuesday Blitz"]
[Site "Chess.com"]
[Date "2018.12.04"]
[Round "6"]
[White "alishersuleymenov"]
[Black "MikaelyanArman"]
[Result "0-1"]
[WhiteElo "2475"]
[BlackElo "2764"]
[TimeControl "180+2"]
[EndTime "14:19:39 PST"]
[Termination "MikaelyanArman won by resignation"]

1. d4 {[%clk 0:03:01.9]} 1... d5 {[%clk 0:03:00]} 2. c4 {[%clk 0:03:02.6]} 2...
c6 {[%clk 0:03:01.4]} 3. Nf3 {[%clk 0:03:03.3]} 3... Nf6 {[%clk 0:03:02.4]} 4.
g3 {[%clk 0:03:04.9]} 4... g6 {[%clk 0:03:03]} 5. Bg2 {[%clk 0:03:05.4]} 5...
Bg7 {[%clk 0:03:04.5]} 6. O-O {[%clk 0:03:06]} 6... O-O {[%clk 0:03:05.9]} 7.
cxd5 {[%clk 0:02:53.3]} 7... cxd5 {[%clk 0:03:07.8]} 8. Nc3 {[%clk 0:02:52.3]}
8... e6 {[%clk 0:03:09.2]} 9. Ne5 {[%clk 0:02:47.8]} 9... Nfd7 {[%clk
0:03:09.8]} 10. Bf4 {[%clk 0:02:43.5]} 10... Nc6 {[%clk 0:03:09.8]} 11. Nxc6
{[%clk 0:02:37.9]} 11... bxc6 {[%clk 0:03:11.7]} 12. Rc1 {[%clk 0:02:39]} 12...
Ba6 {[%clk 0:03:08.1]} 13. Na4 {[%clk 0:02:29.6]} 13... Bb5 {[%clk 0:03:08.6]}
14. Nc5 {[%clk 0:02:29.8]} 14... Nxc5 {[%clk 0:03:03.8]} 15. Rxc5 {[%clk
0:02:31.7]} 15... Qb6 {[%clk 0:03:02.7]} 16. Be3 {[%clk 0:01:47.1]} 16... a5
{[%clk 0:03:00.8]} 17. a4 {[%clk 0:01:36.1]} 17... Bc4 {[%clk 0:03:01.4]} 18.
Qd2 {[%clk 0:01:14.6]} 18... Rfc8 {[%clk 0:02:57.3]} 19. b3 {[%clk 0:01:04.6]}
19... Qxb3 {[%clk 0:02:38.1]} 20. Rxa5 {[%clk 0:01:05.2]} 20... Rxa5 {[%clk
0:02:38.1]} 21. Qxa5 {[%clk 0:01:07.1]} 21... Bxe2 {[%clk 0:02:39.6]} 22. Rc1
{[%clk 0:01:07.4]} 22... Bc4 {[%clk 0:02:38.9]} 23. Qa7 {[%clk 0:01:01.8]} 23...
h5 {[%clk 0:02:35]} 24. h4 {[%clk 0:01:00.8]} 24... Qb2 {[%clk 0:02:32.6]} 25.
a5 {[%clk 0:01:00.5]} 25... Rb8 {[%clk 0:02:22.6]} 26. a6 {[%clk 0:00:47.2]}
26... Qb6 {[%clk 0:01:47.4]} 27. Qxb6 {[%clk 0:00:34.2]} 27... Rxb6 {[%clk
0:01:49.3]} 28. Bf1 {[%clk 0:00:33.3]} 28... Bxa6 {[%clk 0:01:38.8]} 29. Bxa6
{[%clk 0:00:33.4]} 29... Rxa6 {[%clk 0:01:40.7]} 30. Kg2 {[%clk 0:00:35.3]}
30... Ra4 {[%clk 0:01:30.3]} 31. Rd1 {[%clk 0:00:34.6]} 31... Rc4 {[%clk
0:01:29.9]} 32. Kf3 {[%clk 0:00:36]} 32... Bf6 {[%clk 0:01:28]} 33. g4 {[%clk
0:00:33.4]} 33... hxg4+ {[%clk 0:01:27.7]} 34. Kxg4 {[%clk 0:00:35.3]} 34... c5
{[%clk 0:01:28.4]} 0-1

[Event "*** Titled Tuesday Blitz"]
[Site "Chess.com"]
[Date "2018.12.04"]
[Round "6"]
[White "AndrewMcStone"]
[Black "51616516516"]
[Result "1-0"]
[WhiteElo "2141"]
[BlackElo "2238"]
[TimeControl "180+2"]
[EndTime "14:19:41 PST"]
[Termination "AndrewMcStone won on time"]

1. d4 {[%clk 0:03:01.9]} 1... Nf6 {[%clk 0:02:53.1]} 2. c4 {[%clk 0:03:03]} 2...
e6 {[%clk 0:02:53.6]} 3. Nc3 {[%clk 0:03:04.3]} 3... Bb4 {[%clk 0:02:52.7]} 4.
f3 {[%clk 0:03:05.7]} 4... d6 {[%clk 0:02:26.6]} 5. e4 {[%clk 0:02:57.9]} 5...
Bxc3+ {[%clk 0:02:24.6]} 6. bxc3 {[%clk 0:02:57.5]} 6... b6 {[%clk 0:02:26.5]}
7. Bd3 {[%clk 0:02:55.8]} 7... c5 {[%clk 0:02:21.7]} 8. Ne2 {[%clk 0:02:55.2]}
8... O-O {[%clk 0:02:17.5]} 9. O-O {[%clk 0:02:55.9]} 9... Ba6 {[%clk 0:02:17]}
10. Bg5 {[%clk 0:02:36.4]} 10... Nbd7 {[%clk 0:02:02]} 11. f4 {[%clk 0:02:18]}
11... Qc7 {[%clk 0:01:54.6]} 12. e5 {[%clk 0:02:12]} 12... Ng4 {[%clk
0:01:03.7]} 13. Ng3 {[%clk 0:01:53.8]} 13... Ne3 {[%clk 0:00:57.1]} 14. Qh5
{[%clk 0:01:54]} 14... g6 {[%clk 0:00:58]} 15. Qh6 {[%clk 0:01:48.9]} 15... f5
{[%clk 0:00:21.5]} 16. exf6 {[%clk 0:01:32.9]} 16... Nxf6 {[%clk 0:00:22.2]} 17.
Rfe1 {[%clk 0:01:22.2]} 17... Rae8 {[%clk 0:00:14.2]} 18. Qh4 {[%clk 0:00:58.8]}
18... cxd4 {[%clk 0:00:02.1]} 19. Bxf6 {[%clk 0:00:49.2]} 1-0

[Event "*** Titled Tuesday Blitz"]
[Site "Chess.com"]
[Date "2018.12.04"]
[Round "6"]
[White "PchelkinVK"]
[Black "GABUZYAN_CHESSMOOD"]
[Result "0-1"]
[WhiteElo "2583"]
[BlackElo "2814"]
[TimeControl "180+2"]
[EndTime "14:19:47 PST"]
[Termination "GABUZYAN_CHESSMOOD won on time"]

1. d4 {[%clk 0:03:01.9]} 1... Nf6 {[%clk 0:02:55.3]} 2. Nc3 {[%clk 0:03:02.9]}
2... d5 {[%clk 0:02:54.2]} 3. Bf4 {[%clk 0:03:04.2]} 3... a6 {[%clk 0:02:53.2]}
4. Nf3 {[%clk 0:03:05.1]} 4... Bf5 {[%clk 0:02:50.7]} 5. e3 {[%clk 0:03:05.4]}
5... e6 {[%clk 0:02:49.4]} 6. Ne5 {[%clk 0:03:06.9]} 6... Nbd7 {[%clk
0:02:46.3]} 7. g4 {[%clk 0:03:07.3]} 7... Nxe5 {[%clk 0:02:36.1]} 8. gxf5 {[%clk
0:03:07.8]} 8... Nc6 {[%clk 0:02:33.3]} 9. fxe6 {[%clk 0:03:06.6]} 9... fxe6
{[%clk 0:02:33.4]} 10. Rg1 {[%clk 0:02:55.6]} 10... Qd7 {[%clk 0:02:31.8]} 11.
a3 {[%clk 0:02:51.7]} 11... O-O-O {[%clk 0:02:29.1]} 12. Qf3 {[%clk 0:02:09]}
12... Rg8 {[%clk 0:02:20.6]} 13. Bd3 {[%clk 0:02:04.7]} 13... Bd6 {[%clk
0:02:18.9]} 14. O-O-O {[%clk 0:02:00.8]} 14... Rdf8 {[%clk 0:02:15.2]} 15. Bxd6
{[%clk 0:01:54.4]} 15... Qxd6 {[%clk 0:02:17.1]} 16. Qh3 {[%clk 0:01:55.4]}
16... g5 {[%clk 0:02:11.2]} 17. Qh6 {[%clk 0:01:44.7]} 17... Kb8 {[%clk
0:01:51.8]} 18. Rxg5 {[%clk 0:01:22.7]} 18... Ng4 {[%clk 0:01:48]} 19. Qh4
{[%clk 0:00:39.7]} 19... Rxg5 {[%clk 0:01:46.3]} 20. Qxg5 {[%clk 0:00:41.6]}
20... Nxf2 {[%clk 0:01:45.8]} 21. Rd2 {[%clk 0:00:40.1]} 21... Qxh2 {[%clk
0:01:41.3]} 22. Qg7 {[%clk 0:00:27.8]} 22... Rf3 {[%clk 0:01:36.5]} 23. Qxh7
{[%clk 0:00:23.7]} 23... Qg1+ {[%clk 0:01:29.1]} 24. Nd1 {[%clk 0:00:24.1]}
24... Nxd1 {[%clk 0:01:24.7]} 25. Rxd1 {[%clk 0:00:23.7]} 25... Qxe3+ {[%clk
0:01:25.9]} 26. Kb1 {[%clk 0:00:24]} 26... Nxd4 {[%clk 0:01:23.5]} 27. Qh8+
{[%clk 0:00:13.1]} 27... Ka7 {[%clk 0:01:23.5]} 28. Qc8 {[%clk 0:00:10.5]} 28...
Qe5 {[%clk 0:01:20.3]} 0-1

[Event "*** Titled Tuesday Blitz"]
[Site "Chess.com"]
[Date "2018.12.04"]
[Round "6"]
[White "artichaud"]
[Black "TheMagician"]
[Result "0-1"]
[WhiteElo "2134"]
[BlackElo "2258"]
[TimeControl "180+2"]
[EndTime "14:19:54 PST"]
[Termination "TheMagician won on time"]

1. d4 {[%clk 0:02:59.7]} 1... Nf6 {[%clk 0:03:00.3]} 2. Nf3 {[%clk 0:03:00.7]}
2... d6 {[%clk 0:02:59.6]} 3. c4 {[%clk 0:02:58.1]} 3... Nbd7 {[%clk 0:03:00.1]}
4. Bf4 {[%clk 0:02:57.2]} 4... g6 {[%clk 0:03:00.6]} 5. h3 {[%clk 0:02:58.3]}
5... Bg7 {[%clk 0:03:01.6]} 6. e3 {[%clk 0:02:59.8]} 6... O-O {[%clk 0:03:02.4]}
7. Nc3 {[%clk 0:03:00.6]} 7... Re8 {[%clk 0:03:00.6]} 8. Be2 {[%clk 0:03:00.3]}
8... b6 {[%clk 0:03:00.6]} 9. O-O {[%clk 0:03:00.2]} 9... Bb7 {[%clk 0:03:01.7]}
10. Bh2 {[%clk 0:03:01.4]} 10... Ne4 {[%clk 0:03:00.6]} 11. Nxe4 {[%clk
0:02:56.6]} 11... Bxe4 {[%clk 0:03:01.2]} 12. Nd2 {[%clk 0:02:58.5]} 12... Bb7
{[%clk 0:03:02]} 13. Bf3 {[%clk 0:02:59.9]} 13... Qc8 {[%clk 0:03:02.9]} 14. b4
{[%clk 0:02:56.5]} 14... e5 {[%clk 0:03:02.9]} 15. Bxb7 {[%clk 0:02:48.9]} 15...
Qxb7 {[%clk 0:03:02.8]} 16. d5 {[%clk 0:02:50.7]} 16... e4 {[%clk 0:03:01.1]}
17. Rc1 {[%clk 0:02:50.1]} 17... a5 {[%clk 0:02:59.4]} 18. a3 {[%clk 0:02:47.8]}
18... axb4 {[%clk 0:03:00.1]} 19. axb4 {[%clk 0:02:48.9]} 19... f5 {[%clk
0:02:51.4]} 20. Nb3 {[%clk 0:02:48.4]} 20... Ra3 {[%clk 0:02:39]} 21. Nd4 {[%clk
0:02:45.7]} 21... Rd3 {[%clk 0:02:39.4]} 22. Qc2 {[%clk 0:02:25.5]} 22... Bxd4
{[%clk 0:02:38.4]} 23. exd4 {[%clk 0:02:25.1]} 23... Rxd4 {[%clk 0:02:39.5]} 24.
Rfd1 {[%clk 0:02:21.9]} 24... Rxd1+ {[%clk 0:02:37]} 25. Rxd1 {[%clk 0:02:20.1]}
25... Ne5 {[%clk 0:02:34.7]} 26. Qe2 {[%clk 0:02:12.1]} 26... Qa6 {[%clk
0:02:28.5]} 27. Rc1 {[%clk 0:02:00.9]} 27... Qa3 {[%clk 0:02:28.6]} 28. Rb1
{[%clk 0:01:52.6]} 28... Qd3 {[%clk 0:02:29.4]} 29. Qa2 {[%clk 0:01:44.9]} 29...
Qxc4 {[%clk 0:02:28]} 30. Qa7 {[%clk 0:01:40.5]} 30... Qc2 {[%clk 0:02:21.5]}
31. Rf1 {[%clk 0:01:36.7]} 31... Nf7 {[%clk 0:02:16.5]} 32. Bf4 {[%clk
0:01:18.6]} 32... g5 {[%clk 0:02:17.2]} 33. Bc1 {[%clk 0:01:13.2]} 33... f4
{[%clk 0:02:13.1]} 34. Ba3 {[%clk 0:01:06.3]} 34... e3 {[%clk 0:02:07.1]} 35.
Rc1 {[%clk 0:00:17]} 35... Qf5 {[%clk 0:02:04.1]} 36. Qa4 {[%clk 0:00:13.8]}
36... e2 {[%clk 0:02:03.6]} 37. Re1 {[%clk 0:00:13.9]} 37... Re4 {[%clk
0:02:00.3]} 38. Qc2 {[%clk 0:00:06.5]} 38... f3 {[%clk 0:01:59.5]} 0-1

[Event "*** Titled Tuesday Blitz"]
[Site "Chess.com"]
[Date "2018.12.04"]
[Round "6"]
[White "colegiodemadrid"]
[Black "StoreySniper"]
[Result "0-1"]
[WhiteElo "2287"]
[BlackElo "2405"]
[TimeControl "180+2"]
[EndTime "14:19:58 PST"]
[Termination "StoreySniper won by resignation"]

1. e4 {[%clk 0:03:01.9]} 1... g6 {[%clk 0:03:01.9]} 2. d4 {[%clk 0:03:02.4]}
2... Bg7 {[%clk 0:03:03.4]} 3. Nf3 {[%clk 0:03:04.1]} 3... c5 {[%clk 0:03:03.4]}
4. Nc3 {[%clk 0:03:03.7]} 4... Qa5 {[%clk 0:03:03.4]} 5. dxc5 {[%clk 0:03:03.2]}
5... Bxc3+ {[%clk 0:03:03.6]} 6. bxc3 {[%clk 0:03:03.8]} 6... Qxc3+ {[%clk
0:03:05.5]} 7. Bd2 {[%clk 0:03:05.4]} 7... Qxc5 {[%clk 0:03:06.9]} 8. Bd3 {[%clk
0:03:07]} 8... d6 {[%clk 0:03:08.3]} 9. O-O {[%clk 0:03:08.5]} 9... Nd7 {[%clk
0:03:09.8]} 10. Rb1 {[%clk 0:03:10.1]} 10... Ngf6 {[%clk 0:03:10.6]} 11. Bb4
{[%clk 0:03:05.5]} 11... Qc7 {[%clk 0:03:11]} 12. Nd4 {[%clk 0:03:07.2]} 12...
a6 {[%clk 0:03:10.6]} 13. Kh1 {[%clk 0:03:04.4]} 13... O-O {[%clk 0:03:08]} 14.
f4 {[%clk 0:03:05.7]} 14... b6 {[%clk 0:03:01.8]} 15. Qe2 {[%clk 0:03:06]} 15...
Bb7 {[%clk 0:03:02.6]} 16. e5 {[%clk 0:03:00.7]} 16... dxe5 {[%clk 0:03:01.4]}
17. fxe5 {[%clk 0:03:02]} 17... Nd5 {[%clk 0:02:59.4]} 18. Bd2 {[%clk
0:02:52.7]} 18... Nxe5 {[%clk 0:02:58.6]} 19. Rbe1 {[%clk 0:02:44.3]} 19... Nxd3
{[%clk 0:02:57.6]} 20. Qxd3 {[%clk 0:02:45.3]} 20... Rfd8 {[%clk 0:02:28.4]} 21.
c4 {[%clk 0:02:44.4]} 21... Nf6 {[%clk 0:02:19.2]} 22. Qc3 {[%clk 0:02:12.7]}
22... Rac8 {[%clk 0:02:01.4]} 23. Bh6 {[%clk 0:01:49.5]} 23... Ng4 {[%clk
0:01:48.4]} 24. Bf4 {[%clk 0:01:21.7]} 24... e5 {[%clk 0:01:37]} 25. Bg3 {[%clk
0:01:03.8]} 25... exd4 {[%clk 0:01:36.4]} 26. Bxc7 {[%clk 0:00:56.8]} 26... dxc3
{[%clk 0:01:35.6]} 27. Bxd8 {[%clk 0:00:57.6]} 27... Rxd8 {[%clk 0:01:37.4]} 28.
Rc1 {[%clk 0:00:56]} 28... Bxg2+ {[%clk 0:01:26.9]} 29. Kxg2 {[%clk 0:00:54.6]}
29... Ne3+ {[%clk 0:01:28.3]} 30. Kf2 {[%clk 0:00:53.4]} 30... Nxf1 {[%clk
0:01:30.2]} 31. Kxf1 {[%clk 0:00:54.9]} 31... Rd2 {[%clk 0:01:20]} 32. Rxc3
{[%clk 0:00:54.9]} 32... Rxa2 {[%clk 0:01:19.3]} 33. Rb3 {[%clk 0:00:55.4]}
33... Rxh2 {[%clk 0:01:18.2]} 34. Rxb6 {[%clk 0:00:56.2]} 34... Rc2 {[%clk
0:01:19.1]} 35. Rc6 {[%clk 0:00:56.3]} 35... a5 {[%clk 0:01:20.4]} 36. Rc8+
{[%clk 0:00:56.8]} 36... Kg7 {[%clk 0:01:20.8]} 37. c5 {[%clk 0:00:58.4]} 37...
a4 {[%clk 0:01:22.3]} 38. c6 {[%clk 0:00:59.9]} 38... a3 {[%clk 0:01:23.6]} 39.
c7 {[%clk 0:01:01.4]} 39... a2 {[%clk 0:01:24.9]} 40. Ra8 {[%clk 0:01:03.1]}
40... Rxc7 {[%clk 0:01:25.2]} 41. Rxa2 {[%clk 0:01:04.7]} 41... Rc3 {[%clk
0:01:25.1]} 42. Kg2 {[%clk 0:01:05.6]} 42... h5 {[%clk 0:01:26.3]} 43. Ra3
{[%clk 0:01:06.1]} 43... Rxa3 {[%clk 0:01:20.1]} 0-1

[Event "*** Titled Tuesday Blitz"]
[Site "Chess.com"]
[Date "2018.12.04"]
[Round "6"]
[White "Kimster98"]
[Black "volcanoexplorer"]
[Result "1-0"]
[WhiteElo "2563"]
[BlackElo "2398"]
[TimeControl "180+2"]
[EndTime "14:20:24 PST"]
[Termination "Kimster98 won on time"]

1. e4 {[%clk 0:03:01.9]} 1... e5 {[%clk 0:02:59.8]} 2. Nf3 {[%clk 0:03:03.1]}
2... Nc6 {[%clk 0:03:01.1]} 3. Bc4 {[%clk 0:03:04.5]} 3... Bc5 {[%clk
0:03:01.5]} 4. O-O {[%clk 0:03:04.4]} 4... Nf6 {[%clk 0:03:02.8]} 5. d3 {[%clk
0:03:05.8]} 5... O-O {[%clk 0:03:03.5]} 6. c3 {[%clk 0:03:06.9]} 6... d6 {[%clk
0:03:04.9]} 7. a4 {[%clk 0:03:07.4]} 7... a6 {[%clk 0:03:06.1]} 8. h3 {[%clk
0:03:06.5]} 8... h6 {[%clk 0:03:07]} 9. Na3 {[%clk 0:03:05.5]} 9... Ba7 {[%clk
0:03:08]} 10. Nc2 {[%clk 0:03:06.9]} 10... Ne7 {[%clk 0:03:06.4]} 11. Be3 {[%clk
0:03:08]} 11... Bxe3 {[%clk 0:03:02]} 12. Nxe3 {[%clk 0:03:09.9]} 12... Ng6
{[%clk 0:03:03.5]} 13. Kh2 {[%clk 0:03:07]} 13... c6 {[%clk 0:03:04.5]} 14. Bb3
{[%clk 0:02:44.5]} 14... Be6 {[%clk 0:02:53.7]} 15. Bxe6 {[%clk 0:02:42.9]}
15... fxe6 {[%clk 0:02:54.3]} 16. g3 {[%clk 0:02:44.4]} 16... d5 {[%clk
0:02:52.1]} 17. Qc2 {[%clk 0:02:42.9]} 17... Nxe4 {[%clk 0:02:38]} 18. dxe4
{[%clk 0:02:41.5]} 18... Rxf3 {[%clk 0:02:38.8]} 19. exd5 {[%clk 0:02:42.9]}
19... Qf6 {[%clk 0:02:01.2]} 20. dxe6 {[%clk 0:02:35.2]} 20... Qxe6 {[%clk
0:01:58.3]} 21. Qe4 {[%clk 0:02:25.6]} 21... Raf8 {[%clk 0:01:58.3]} 22. Kg2
{[%clk 0:01:47.1]} 22... R3f7 {[%clk 0:00:49.3]} 23. Rad1 {[%clk 0:01:17.4]}
23... Ne7 {[%clk 0:00:26.7]} 24. Rd2 {[%clk 0:01:11]} 24... Qf6 {[%clk 0:00:20]}
25. f4 {[%clk 0:01:04.2]} 25... exf4 {[%clk 0:00:18.1]} 26. Rxf4 {[%clk
0:01:06.1]} 26... Qg5 {[%clk 0:00:19]} 27. Rxf7 {[%clk 0:01:06.5]} 27... Rxf7
{[%clk 0:00:18.9]} 28. Rd8+ {[%clk 0:01:06.4]} 28... Rf8 {[%clk 0:00:20.4]} 29.
Qe6+ {[%clk 0:01:07.5]} 29... Kh7 {[%clk 0:00:18.1]} 30. Rxf8 {[%clk 0:01:09]}
30... h5 {[%clk 0:00:09.6]} 31. h4 {[%clk 0:01:05.3]} 31... Qc5 {[%clk
0:00:04.1]} 32. Rf5 {[%clk 0:00:57.7]} 1-0

[Event "*** Titled Tuesday Blitz"]
[Site "Chess.com"]
[Date "2018.12.04"]
[Round "6"]
[White "StephenDedalus83"]
[Black "eldur16"]
[Result "1-0"]
[WhiteElo "2740"]
[BlackElo "2632"]
[TimeControl "180+2"]
[EndTime "14:20:25 PST"]
[Termination "StephenDedalus83 won on time"]

1. e4 {[%clk 0:03:01.9]} 1... g6 {[%clk 0:03:00.3]} 2. d4 {[%clk 0:03:02.3]}
2... Bg7 {[%clk 0:03:01.2]} 3. Nc3 {[%clk 0:03:03]} 3... d6 {[%clk 0:03:02.3]}
4. Be3 {[%clk 0:03:02.9]} 4... a6 {[%clk 0:03:02.1]} 5. Qd2 {[%clk 0:02:49.1]}
5... b5 {[%clk 0:03:02.6]} 6. h4 {[%clk 0:02:48.8]} 6... Nf6 {[%clk 0:02:58.1]}
7. f3 {[%clk 0:02:48.8]} 7... h5 {[%clk 0:02:55.4]} 8. Nh3 {[%clk 0:02:48.4]}
8... Bxh3 {[%clk 0:02:55.5]} 9. Rxh3 {[%clk 0:02:48.8]} 9... c6 {[%clk
0:02:54.4]} 10. O-O-O {[%clk 0:02:45.1]} 10... Nbd7 {[%clk 0:02:49]} 11. Kb1
{[%clk 0:02:45.7]} 11... Qc7 {[%clk 0:02:49.2]} 12. Bd3 {[%clk 0:02:40.1]} 12...
Rb8 {[%clk 0:02:48.5]} 13. Rhh1 {[%clk 0:02:35.9]} 13... Nb6 {[%clk 0:02:48]}
14. Qf2 {[%clk 0:02:31.3]} 14... Nc4 {[%clk 0:02:45.2]} 15. Bc1 {[%clk
0:02:32.1]} 15... Nd7 {[%clk 0:02:36.7]} 16. Ne2 {[%clk 0:02:31.9]} 16... c5
{[%clk 0:02:34.7]} 17. c3 {[%clk 0:02:24.5]} 17... cxd4 {[%clk 0:02:32.6]} 18.
cxd4 {[%clk 0:02:25.2]} 18... Ndb6 {[%clk 0:02:26]} 19. f4 {[%clk 0:02:08.3]}
19... b4 {[%clk 0:01:58.4]} 20. e5 {[%clk 0:01:56.7]} 20... Nd5 {[%clk 0:01:48]}
21. Qf3 {[%clk 0:01:43.7]} 21... e6 {[%clk 0:01:42]} 22. Be4 {[%clk 0:01:43]}
22... O-O {[%clk 0:01:16.4]} 23. g4 {[%clk 0:01:39.6]} 23... hxg4 {[%clk
0:01:15]} 24. Qxg4 {[%clk 0:01:40.5]} 24... Nce3 {[%clk 0:01:14.6]} 25. Qf3
{[%clk 0:01:39.2]} 25... Nxd1 {[%clk 0:01:15]} 26. Rxd1 {[%clk 0:01:41.1]} 26...
dxe5 {[%clk 0:01:00.8]} 27. fxe5 {[%clk 0:01:41.2]} 27... Nc3+ {[%clk
0:00:44.5]} 28. bxc3 {[%clk 0:01:39.7]} 28... bxc3+ {[%clk 0:00:44.9]} 29. Kc2
{[%clk 0:01:41.3]} 29... Qc4 {[%clk 0:00:31.5]} 30. Nxc3 {[%clk 0:01:34.7]}
30... Rfc8 {[%clk 0:00:30.5]} 31. Rf1 {[%clk 0:01:24]} 31... Qxa2+ {[%clk
0:00:21.6]} 32. Kd1 {[%clk 0:01:24.7]} 32... Qb3+ {[%clk 0:00:21.6]} 33. Kd2
{[%clk 0:01:25.9]} 33... Rb4 {[%clk 0:00:20.4]} 34. Qxf7+ {[%clk 0:01:23.5]}
34... Kh8 {[%clk 0:00:20.8]} 35. Qxg6 {[%clk 0:01:24.4]} 35... Qxc3+ {[%clk
0:00:16.7]} 36. Ke2 {[%clk 0:01:25.5]} 36... Qc4+ {[%clk 0:00:15.5]} 37. Bd3
{[%clk 0:01:24.8]} 37... Qa2+ {[%clk 0:00:07.8]} 38. Bd2 {[%clk 0:01:25.3]} 1-0